fUSD/lending_fUSD_20251024
["ID","MTS","AMOUNT","RATE_DAILY","PERIOD"]
[392255060,1761281440651,-4672.64,0.00033378,2]
[392255062,1761281440661,-165.96,0.00033378,120]
[392255063,1761281440672,-168.88,0.00033545,14]
[392255064,1761281440681,-171.47,0.00033559,2]
[392255065,1761281440690,-17925.94224692,0.00033964,2]
[392255066,1761281440699,-168.0,0.00034299,2]
[392255067,1761281440708,-328.24,0.00034346,14]
[392255068,1761281440717,-1494.56223521,0.00034529,2]
[392255069,1761281440727,-168.0,0.00034635,2]
[392255070,1761281440738,-180.0,0.00035046,13]
[392255071,1761281440749,-17925.94224692,0.00035318,2]
[392255072,1761281440758,-272.4,0.00035408,2]
[392255073,1761281440768,-650.65129156,0.00035749,8]
[392255074,1761281440777,-8536.99011637,0.000359,2]
[392255075,1761281440786,-164.79021262,0.00035973,15]
[392255076,1761281440795,-168.0,0.00035996,2]
[392255077,1761281440804,-500.0,0.00035999,30]
[392255078,1761281440813,-281.85312192,0.00036,5]
[392255079,1761281440824,-14307.45031591,0.00036,30]
[392255080,1761281440833,-49511.80137473,0.00036,2]
[392255081,1761281440842,-50100.98190399,0.00036,6]
[392255082,1761281440852,-10686.98261563,0.00036,2]
[392255083,1761281440861,-221.79962017,0.00036,3]
[392255084,1761281440871,-151.0,0.00036031,14]
[392255085,1761281440881,-500.0,0.00036033,30]
[392255086,1761281440891,-500.0,0.00036033,30]
[392255087,1761281440903,-500.0,0.00036033,30]
[392255088,1761281440912,-500.0,0.00036033,7]
[392255089,1761281440921,-500.0,0.00036033,7]
[392255090,1761281440930,-500.0,0.00036033,2]
[392255091,1761281440940,-500.0,0.00036033,2]
[392255092,1761281440949,-313598.52,0.00036034,2]
[392255093,1761281440959,-500.0,0.00036073,5]
[392255094,1761281440968,-501.83509928,0.00036073,5]
[392255095,1761281440977,-501.00704217,0.00036073,5]
[392255096,1761281440986,-372.37,0.00036086,120]
[392255097,1761281440995,-1000.0,0.00036127,2]
[392255098,1761281441004,-168.0,0.00036222,2]
[392255099,1761281441014,-168.0,0.00036263,2]
[392255100,1761281441023,-168.0,0.00036286,2]
[392255101,1761281441033,-476.23156132,0.0003636,2]
[392255102,1761281441042,-322.6107,0.00036376,2]
[392255103,1761281441052,-500.0,0.00036376,2]
[392255104,1761281441062,-159.94697005,0.00036376,2]
[392255105,1761281441071,-277.35679052,0.00036376,2]
[392255106,1761281441081,-8536.99011635,0.00036618,2]
[392255107,1761281441090,-517.88198726,0.00036649,2]
[392255108,1761281441099,-150.0,0.00036666,4]
[392255109,1761281441108,-17925.94224692,0.00036673,2]
[392255110,1761281441118,-263.12789478,0.00036736,30]
[392255111,1761281441128,-12700.2491293,0.00036738,3]
[392255112,1761281441137,-13436.9210709,0.00036738,3]
[392255113,1761281441146,-151.0,0.00036746,14]
[392255114,1761281441156,-500.0,0.00036748,30]
[392255115,1761281441167,-500.0,0.00036748,7]
[392255116,1761281441176,-500.0,0.00036748,2]
[392255117,1761281441185,-10476.62450584,0.00036749,2]
[392255118,1761281441195,-57919.64146521,0.00036749,2]
[392255119,1761281441204,-15769.30237295,0.00036749,2]
[392255120,1761281441213,-1863.46704841,0.00036749,2]
[392255121,1761281441223,-543.8414245,0.00036749,2]
[392255122,1761281441232,-1134.4968281,0.00036749,2]
[392255123,1761281441242,-2178.83218282,0.00036749,5]
[392255124,1761281441251,-408.62851779,0.00036749,2]
[392255125,1761281441260,-1504.94388959,0.00036749,2]
[392255126,1761281441269,-24743.74486505,0.00036749,2]
[392255127,1761281441279,-20572.93366995,0.00036749,2]
[392255128,1761281441288,-2475.34258008,0.00036749,2]
[392255129,1761281441297,-3192.56067266,0.00036749,2]
[392255130,1761281441306,-205.93061616,0.00036749,2]
[392255131,1761281441315,-876.45726366,0.00036749,2]
[392255132,1761281441324,-505.59527868,0.00036749,2]
[392255133,1761281441334,-287.09477558,0.00036749,2]
[392255134,1761281441343,-5773.42644789,0.00036749,2]
[392255135,1761281441352,-1130.56257031,0.00036749,2]
[392255136,1761281441361,-4649.45781158,0.00036749,2]
[392255137,1761281441371,-1716.46822014,0.00036749,2]
[392255138,1761281441381,-1050.29054362,0.00036749,2]
[392255139,1761281441392,-12814.02737037,0.00036749,2]
[392255140,1761281441401,-160.39684713,0.00036749,2]
[392255141,1761281441411,-202.52369443,0.00036749,2]
[392255142,1761281441422,-464.96506262,0.00036749,120]
[392255143,1761281441433,-754.0018488,0.00036749,2]
[392255144,1761281441442,-1341.01260163,0.00036749,2]
[392255145,1761281441452,-4266.0,0.00036749,2]
[392255146,1761281441461,-151.57536982,0.00036749,2]
[392255147,1761281441470,-184.73256924,0.00036749,2]
[392255148,1761281441478,-3355.97683585,0.00036749,2]
[392255149,1761281441486,-10244.79014785,0.00036749,2]
[392255150,1761281441495,-166.0,0.00036749,30]
[392255151,1761281441504,-1097.35335759,0.00036749,30]
[392255152,1761281441514,-309.14897191,0.00036749,16]
[392255153,1761281441523,-200.0,0.00036749,120]
[392255154,1761281441535,-200.0,0.000369,13]
[392255155,1761281441544,-171.47,0.00036915,2]
[392255156,1761281441555,-168.0,0.0003715,2]
[392255157,1761281441564,-168.0,0.00037161,2]
[392255158,1761281441577,-168.0,0.00037317,2]
[392255159,1761281441587,-8536.99011635,0.00037337,2]
[392255160,1761281441596,-12700.2491293,0.0003741,3]
[392255161,1761281441605,-755.0,0.00037413,5]
[392255162,1761281441615,-500.0,0.00037636,5]
[392255163,1761281441627,-501.64844161,0.00037636,5]
[392255164,1761281441638,-517.1336676,0.00037636,5]
[392255165,1761281441652,-503.07324151,0.00037636,5]
[392255166,1761281441664,-13436.9210709,0.00037719,3]
[392255167,1761281441674,-12700.2491293,0.00037729,3]
[392255168,1761281441686,-13436.9210709,0.00037729,3]
[392255169,1761281441697,-151.920217,0.00037739,30]
[392255170,1761281441706,-151.0,0.00037739,30]
[392255171,1761281441715,-153.335368,0.00037739,30]
[392255172,1761281441724,-296.675193,0.00037739,30]
[392255173,1761281441734,-151.0,0.00037739,30]
[392255174,1761281441743,-174.033846,0.00037739,30]
[392255175,1761281441752,-189.801417,0.00037739,30]
[392255176,1761281441761,-151.0,0.00037739,30]
[392255177,1761281441771,-151.0,0.00037739,30]
[392255178,1761281441780,-254.0,0.00037739,30]
[392255179,1761281441790,-151.0,0.00037739,30]
[392255180,1761281441799,-151.0,0.00037739,30]
[392255181,1761281441808,-160.362226,0.00037739,30]
[392255182,1761281441817,-151.0,0.00037739,30]
[392255183,1761281441828,-151.0,0.00037739,30]
[392255184,1761281441837,-151.0,0.00037739,30]
[392255185,1761281441846,-151.0,0.00037739,30]
[392255186,1761281441862,-152.5241,0.00037739,30]
[392255187,1761281441872,-158.330754,0.00037739,30]
[392255188,1761281441882,-151.0,0.00037739,30]
[392255189,1761281441892,-172.457773,0.00037739,30]
[392255190,1761281441901,-152.621755,0.00037739,30]
[392255191,1761281441911,-151.0,0.00037739,30]
[392255192,1761281441920,-151.0,0.00037739,30]
[392255193,1761281441930,-151.0,0.00037739,30]
[392255194,1761281441940,-151.0,0.00037739,30]
[392255195,1761281441950,-151.0,0.00037739,30]
[392255196,1761281441960,-152.664715,0.00037739,30]
[392255197,1761281441971,-151.0,0.00037739,30]
[392255198,1761281441981,-153.169342,0.00037739,30]
[392255199,1761281441991,-151.0,0.00037739,30]
[392255200,1761281442000,-152.687604,0.00037739,30]
[392255201,1761281442011,-151.0,0.00037739,30]
[392255202,1761281442020,-176.078293,0.00037739,30]
[392255203,1761281442029,-151.0,0.00037739,30]
[392255204,1761281442038,-151.0,0.00037739,30]
[392255205,1761281442047,-168.246658,0.00037739,30]
[392255206,1761281442057,-160.168344,0.00037739,30]
[392255207,1761281442066,-151.0,0.00037739,30]
[392255208,1761281442075,-151.0,0.00037739,30]
[392255209,1761281442085,-151.0,0.00037739,30]
[392255210,1761281442094,-151.0,0.00037739,30]
[392255211,1761281442103,-155.50441,0.00037739,30]
[392255212,1761281442113,-151.0,0.00037739,30]
[392255213,1761281442122,-151.0,0.00037739,30]
[392255214,1761281442131,-151.0,0.00037739,30]
[392255215,1761281442141,-151.0,0.00037739,30]
[392255216,1761281442150,-151.0,0.00037739,30]
[392255217,1761281442159,-243.240813,0.00037739,30]
[392255218,1761281442168,-151.0,0.00037739,30]
[392255219,1761281442177,-151.0,0.00037739,30]
[392255220,1761281442187,-152.002984,0.00037739,30]
[392255221,1761281442196,-151.0,0.00037739,30]
[392255222,1761281442205,-152.265325,0.00037739,30]
[392255223,1761281442214,-151.0,0.00037739,30]
[392255224,1761281442223,-151.0,0.00037739,30]
[392255225,1761281442232,-816.708777,0.00037739,30]
[392255226,1761281442242,-816.708777,0.00037739,30]
[392255227,1761281442251,-816.708777,0.00037739,30]
[392255228,1761281442260,-816.708777,0.00037739,30]
[392255229,1761281442269,-156.702552,0.00037739,30]
[392255230,1761281442278,-151.0,0.00037739,30]
[392255231,1761281442287,-151.0,0.00037739,30]
[392255232,1761281442296,-151.0,0.00037739,30]
[392255233,1761281442306,-315.361031,0.00037739,30]
[392255234,1761281442314,-315.361031,0.00037739,30]
[392255235,1761281442323,-315.361031,0.00037739,30]
[392255236,1761281442332,-315.361031,0.00037739,30]
[392255237,1761281442341,-12700.2491293,0.00037739,3]
[392255238,1761281442351,-334.5472959,0.00037745,2]
[392255239,1761281442360,-392.97846605,0.00037745,2]
[392255240,1761281442370,-153.855845,0.00037749,30]
[392255241,1761281442378,-151.0,0.00037749,30]
[392255242,1761281442388,-151.0,0.00037749,30]
[392255243,1761281442396,-151.0,0.00037749,30]
[392255244,1761281442406,-151.0,0.00037749,30]
[392255245,1761281442415,-151.0,0.00037749,30]
[392255246,1761281442424,-151.0,0.00037749,30]
[392255247,1761281442433,-154.733103,0.00037749,30]
[392255248,1761281442442,-152.948692,0.00037749,30]
[392255249,1761281442451,-151.0,0.00037749,30]
[392255250,1761281442462,-151.0,0.00037749,30]
[392255251,1761281442471,-152.905253,0.00037749,30]
[392255252,1761281442480,-156.603173,0.00037749,30]
[392255253,1761281442490,-156.450772,0.00037749,30]
[392255255,1761281442499,-151.0,0.00037749,30]
[392255256,1761281442509,-501.0,0.00037749,120]
[392255257,1761281442518,-164.79021262,0.00037762,15]
[392255258,1761281442528,-11065.54609906,0.00037817,3]
[392255259,1761281442541,-754.28381952,0.00037817,3]
[392255260,1761281442552,-1617.09115232,0.00037817,3]
[392255261,1761281442561,-202.47139032,0.00037827,2]
[392255262,1761281442570,-153.49,0.00037827,2]
[392255263,1761281442583,-151.0,0.00037827,30]
[392255264,1761281442592,-377.264628,0.00037827,30]
[392255265,1761281442601,-377.264628,0.00037827,30]
[392255266,1761281442610,-377.264628,0.00037827,30]
[392255267,1761281442619,-377.264628,0.00037827,30]
[392255268,1761281442628,-154.071718,0.00037827,30]
[392255269,1761281442637,-569.557569,0.00037827,30]
[392255270,1761281442647,-569.557569,0.00037827,30]
[392255271,1761281442656,-569.557569,0.00037827,30]
[392255272,1761281442665,-569.557569,0.00037827,30]
[392255273,1761281442675,-151.0,0.00037827,30]
[392255274,1761281442684,-151.0,0.00037827,30]
[392255275,1761281442693,-215.244104,0.00037827,30]
[392255276,1761281442702,-156.742453,0.00037827,30]
[392255277,1761281442711,-167.346069,0.00037827,30]
[392255278,1761281442721,-151.0,0.00037827,30]
[392255279,1761281442730,-1516.55465929,0.00037828,3]
[392255280,1761281442741,-8947.21879473,0.00037828,3]
[392255281,1761281442751,-8943.78386462,0.00037828,3]
[392255282,1761281442763,-5992.94093996,0.00037828,3]
[392255283,1761281442772,-3084.60772156,0.00037828,3]
[392255284,1761281442782,-8943.84023489,0.00037828,3]
[392255285,1761281442804,-1426.43848411,0.00037828,3]
[392255286,1761281442815,-9046.86612628,0.00037828,3]
[392255287,1761281442826,-777.82582708,0.00037828,3]
[392255288,1761281442837,-3594.26374788,0.00037828,3]
[392255289,1761281442846,-12700.2491293,0.00037837,3]
[392255290,1761281442855,-38100.7473878,0.00037837,3]
[392255291,1761281442865,-500.0,0.00037847,7]
[392255292,1761281442874,-500.0,0.00037847,2]
[392255293,1761281442883,-418.59660248,0.00037856,2]
[392255294,1761281443334,-150.0,0.000335,3]
[392255295,1761281443343,-152.87487,0.00037729,30]
[392255296,1761281443353,-32.663493,0.00037729,30]
[392255297,1761281443374,-118.336507,0.00037729,30]
[392255298,1761281443383,-246.506593,0.00037729,30]
[392255299,1761281443392,-151.0,0.00037729,30]
[392255300,1761281443402,-81.40339752,0.00037856,2]
[392255301,1761281443411,-151.770404,0.00037857,30]
[392255302,1761281443421,-151.0,0.00037857,30]
[392255303,1761281443432,-151.0,0.00037857,30]
[392255304,1761281443441,-153.65643,0.00037857,30]
[392255305,1761281443452,-151.0,0.00037857,30]
[392255306,1761281443466,-290.773694,0.00037857,30]
[392255307,1761281443475,-1508.57,0.000379,14]
[392255308,1761281443484,-448.20747236,0.000379,30]
[392255309,1761281443496,-536.82252764,0.000379,30]
[392255310,1761281443505,-500.0,0.000379,13]
[392255311,1761281443514,-1509.17747236,0.00037934,3]
[392255315,1761281446114,-246.506593,0.00037729,30]
[392255316,1761281446124,-151.0,0.00037729,30]
[392255317,1761281446133,-6054.1107468,0.00037934,3]
[392255318,1761281446144,-944.01290576,0.00037934,3]
[392255319,1761281446164,-4929.61994598,0.00037934,3]
[392255320,1761281446173,-11757.29711682,0.00037943,3]
[392255321,1761281446184,-496.2841,0.00037943,3]
[392255322,1761281446196,-303.61249924,0.00037943,3]
[392255323,1761281446207,-143.05541324,0.00037943,3]
[392255324,1761281446217,-315.94458676,0.00038027,2]
[392255377,1761282078469,250.0,0.00017,2]
[392255380,1761282106271,190.72,0.00016712,2]
[392255550,1761282423042,161.40627073,0.00022457,42]
[392255639,1761282447229,390.48,0.00013699,2]
[392255783,1761282631844,-390.48,0.00020187,2]
[392255784,1761282631854,-840.72141571,0.00020755,2]
[392255785,1761282631901,-772.33840755,0.00020755,2]
[392255786,1761282631913,-886.94017674,0.00020755,2]
[392255787,1761282631927,-250.0,0.00021322,2]
[392255788,1761282631936,-1150.85631851,0.00021622,2]
[392255789,1761282631947,-1349.14368149,0.00021622,2]
[392255790,1761282631957,-156.01973386,0.00021622,2]
[392255791,1761282631967,-250.0,0.00022052,2]
[392255792,1761282631977,-250.0,0.00022206,2]
[392255793,1761282631987,-195.0,0.00022206,2]
[392255794,1761282631999,-2389.09242859,0.00022206,2]
[392255795,1761282632015,-110.90757141,0.00022206,2]
[392255796,1761282632024,-638.24969626,0.00022343,2]
[392255797,1761282632054,-268.07230174,0.00022343,2]
[392255798,1761282632064,-179.22588361,0.00022456,2]
[392255799,1761282632074,-300.0,0.00022555,2]
[392255800,1761282632087,-300.0,0.00022555,2]
[392255801,1761282632096,-150.0,0.00022556,2]
[392255802,1761282632106,-300.0,0.00022556,2]
[392255803,1761282632115,-1200.0,0.00022556,2]
[392255804,1761282632124,-178.0,0.00022557,2]
[392255805,1761282632134,-500.0,0.00022557,2]
[392255806,1761282632144,-500.0,0.00022557,2]
[392255807,1761282632153,-304.60928756,0.00022557,2]
[392255808,1761282632163,-150.0,0.00022557,2]
[392255809,1761282632172,-150.0,0.00023824,2]
[392255810,1761282632181,-420.0,0.00024497,2]
[392255812,1761282632191,-1680.0,0.00024611,2]
[392255814,1761282632200,-500.0,0.00024932,2]
[392255816,1761282632210,-587.0,0.00026605,2]
[392255818,1761282632219,-390.48,0.00026676,2]
[392255820,1761282632228,-1209.0,0.00026853,2]
[392255822,1761282632238,-823.0,0.00028894,2]
[392255823,1761282632247,-775.0,0.0003138,2]
[392255824,1761282632256,-390.48,0.00033165,2]
[392255825,1761282632266,-217.92,0.00034775,2]
[392255827,1761282632276,-166.66,0.00034921,30]
[392255829,1761282632285,-200.0,0.00034969,2]
[392255831,1761282632294,-180.6828614,0.00035046,13]
[392255833,1761282632303,-300.0,0.00035384,2]
[392255835,1761282632313,-166.66,0.00035656,30]
[392255837,1761282632322,-500.0,0.00035999,30]
[392255839,1761282632332,-628.84048359,0.00036033,30]
[392255842,1761282632341,-750.892,0.00036033,44]
[392255844,1761282632350,-166.66,0.00036391,30]
[392255845,1761282632360,-151.0,0.00036723,2]
[392255848,1761282632369,-290.59151979,0.00036723,2]
[392255850,1761282632378,-10244.79014785,0.00036796,2]
[392255851,1761282632388,-200.0,0.00036796,120]
[392255854,1761282632397,-428.24,0.00036875,2]
[392255856,1761282632407,-323.75,0.00036919,2]
[392255858,1761282632416,-666.0,0.00036936,3]
[392255859,1761282632425,-300.0,0.00036959,7]
[392255860,1761282632435,-254.19149785,0.00036986,4]
[392255861,1761282632444,-476.23156132,0.00037016,2]
[392255862,1761282632454,-166.66,0.00037126,30]
[392255863,1761282632464,-179.2258836,0.00037582,2]
[392255864,1761282632474,-150.0,0.00037627,2]
[392255865,1761282632487,-150.0,0.00037627,2]
[392255866,1761282632497,-150.0,0.00037647,7]
[392255867,1761282632507,-1000.0,0.00037648,2]
[392255868,1761282632517,-346.7217776,0.00037649,2]
[392255869,1761282632526,-41112.58419502,0.0003765,2]
[392255870,1761282632536,-150.0,0.00037682,2]
[392255871,1761282632545,-150.0,0.00037682,2]
[392255872,1761282632554,-150.0,0.00037682,2]
[392255873,1761282632565,-150.0,0.00037702,7]
[392255874,1761282632574,-200.0,0.00037737,2]
[392255875,1761282632584,-150.0,0.00037737,2]
[392255876,1761282632594,-200.0,0.00037757,7]
[392255877,1761282632605,-200.0,0.00037792,2]
[392255878,1761282632614,-14058.53618572,0.00037849,2]
[392255879,1761282632629,-7287.19226628,0.00037849,2]
[392255880,1761282632639,-317.45854483,0.00037857,30]
[392255881,1761282632651,-166.66,0.00037862,30]
[392255882,1761282632661,-151.0,0.00038027,2]
[392255883,1761282632670,-172.71423313,0.00038027,2]
[392255884,1761282632680,-200.0,0.00038027,2]
[392255885,1761282632690,-403.64391,0.00038027,2]
[392255886,1761282632700,-7696.83231657,0.00038174,2]
[392255887,1761282632709,-16827.98647852,0.00038219,2]
[392255889,1761282637734,-419.075,0.00038219,2]
[392255890,1761282637846,-300.05562969,0.00038219,2]
[392255891,1761282637860,-4712.9888776,0.00038219,2]
[392255892,1761282637875,-5194.57713852,0.00038219,2]
[392255893,1761282637890,-42457.93492168,0.00038219,2]
[392255894,1761282637899,-635.39,0.00038274,2]
[392255895,1761282637908,-547.46,0.00038274,2]
[392255896,1761282637922,-168.47,0.00038274,2]
[392255897,1761282637931,-200.0,0.00038407,2]
[392255898,1761282637940,-1091.0,0.00038582,5]
[392255899,1761282637951,-166.66,0.00038597,30]
[392255900,1761282637962,-336.99,0.0003863,2]
[392255902,1761282637972,-167.92,0.0003863,2]
[392255903,1761282637981,-168.52,0.00038634,2]
[392255904,1761282637993,-3545.72520919,0.0003864,2]
[392255905,1761282638006,-1461.05034418,0.0003864,2]
[392255907,1761282638022,-889.96,0.0003864,2]
[392255928,1761282640021,-1800.09676314,0.0003864,2]
[392255929,1761282640031,-165.96,0.00038941,120]
[392255930,1761282640041,-30.51745859,0.00038999,7]
[392255931,1761282640057,-469.48254141,0.00038999,7]
[392255932,1761282640067,-500.0,0.00038999,2]
[392255933,1761282640076,-99893.17449975,0.00039,2]
[392255934,1761282640087,-902.70852468,0.00039,5]
[392255935,1761282640097,-7696.83231651,0.00039105,2]
[392255936,1761282640107,-309.14897191,0.00039217,7]
[392255937,1761282640116,-1300.62917332,0.00039277,2]
[392255938,1761282640125,-475.46,0.00039342,2]
[392255939,1761282640135,-200.0,0.0003938,20]
[392255940,1761282640145,-19999.99,0.00039484,2]
[392255941,1761282640155,-1000.0,0.00039508,2]
[392255942,1761282640164,-12112.2746326,0.00039561,3]
[392255943,1761282640173,-7696.83231651,0.00039571,2]
[392255944,1761282640182,-315.67,0.00039571,2]
[392255945,1761282640191,-1034.5,0.00039616,2]
[392255946,1761282640201,-5975.89308149,0.00039635,2]
[392255947,1761282640210,-390.48,0.00039654,2]
[392255948,1761282640219,-12112.2746326,0.00039725,3]
[392255949,1761282640229,-1639.156,0.00039735,2]
[392255950,1761282640238,-818.0,0.00039735,2]
[392255951,1761282640247,-1269.0,0.00039735,2]
[392255952,1761282640257,-6539.0,0.00039735,2]
[392255953,1761282640267,-6456.0,0.00039735,2]
[392255954,1761282640276,-175.94,0.00039735,2]
[392255955,1761282640285,-3487.0,0.00039735,2]
[392255956,1761282640295,-5975.89308144,0.00039938,15]
[392255957,1761282640305,-12112.2746326,0.0003999,3]
[392255958,1761282640316,-1000.0,0.0004,120]
[392255959,1761282640326,-12500.0,0.0004,120]
[392255960,1761282640335,-168.52,0.0004,2]
[392255961,1761282640345,-403.64392,0.00040027,2]
[392255962,1761282640354,-7696.83231651,0.00040037,15]
[392255963,1761282640364,-164.79021262,0.0004014,15]
[392255964,1761282640373,-12112.2746326,0.0004022,3]
[392255965,1761282640383,-607.27453878,0.0004024,12]
[392255966,1761282640393,-12112.2746326,0.0004024,3]
[392255967,1761282640402,-5975.89308144,0.00040242,15]
[392255968,1761282640412,-12500.0,0.0004025,120]
[392255969,1761282640421,-171.47,0.00040271,2]
[392255970,1761282640431,-261.2257,0.0004034,2]
[392255971,1761282640440,-12112.2746326,0.00040418,3]
[392255972,1761282640450,-611.0,0.00040438,5]
[392255973,1761282640460,-500.0,0.00040478,30]
[392255974,1761282640470,-359.25626416,0.00040483,30]
[392255975,1761282640480,-500.0,0.00040489,7]
[392255976,1761282640489,-12112.2746326,0.0004049,3]
[392255977,1761282640498,-12500.0,0.000405,120]
[392255978,1761282640508,-7696.83231651,0.00040502,15]
[392255979,1761282640518,-5975.89308144,0.00040545,15]
[392255980,1761282640528,-1091.0,0.00040613,5]
[392255981,1761282640537,-547.46,0.0004063,2]
[392255982,1761282640547,-168.47,0.0004063,2]
[392255983,1761282640556,-12112.2746326,0.0004074,3]
[392255984,1761282640566,-12500.0,0.0004075,120]
[392255985,1761282640575,-500.0,0.00040812,2]
[392255986,1761282640584,-5975.89308144,0.00040848,15]
[392255987,1761282640593,-561.97521657,0.0004088,120]
[392255988,1761282640603,-6910.51720825,0.00040958,3]
[392255989,1761282640615,-1654.73603074,0.00040958,3]
[392255990,1761282640634,-3547.02139361,0.00040958,3]
[392255991,1761282640643,-5027.27894032,0.00040968,15]
[392255992,1761282640654,-2669.55337619,0.00040968,15]
[392255993,1761282640664,-6277.66541854,0.0004098,3]
[392255994,1761282640676,-8943.78386462,0.0004098,3]
[392255995,1761282640688,-9077.54866152,0.0004098,3]
[392255996,1761282640699,-8943.84023489,0.0004098,3]
[392255997,1761282640711,-3043.12481012,0.0004098,3]
[392255998,1761282640722,-2426.82945446,0.0004098,3]
[392256007,1761282645874,-153.0,0.00032877,30]
[392256008,1761282645887,-153.0,0.00032877,30]
[392256009,1761282645897,-153.0,0.00032877,30]
[392256010,1761282645907,-153.0,0.00032877,30]
[392256011,1761282645920,-153.0,0.00032877,30]
[392256012,1761282645929,-153.0,0.00032877,30]
[392256013,1761282645939,-153.0,0.00032877,30]
[392256014,1761282645949,-153.0,0.00032877,30]
[392256015,1761282645959,-1193.628,0.00039735,2]
[392256016,1761282645969,-2440.2249967,0.0004098,3]
[392256017,1761282645997,-153.0,0.00032877,30]
[392256018,1761282646008,-31520.63035455,0.0004098,3]
[392256019,1761282646018,-2408.03631372,0.0004098,3]
[392256020,1761282646028,-443.89884624,0.00040985,2]
[392256021,1761282646037,-36336.8238977,0.00040985,3]
[392256022,1761282646046,-802.67877124,0.00040985,3]
[392256023,1761282646055,-258.39,0.00040986,14]
[392256024,1761282646064,-500.0,0.00040989,7]
[392256025,1761282646080,-38826.54181655,0.0004099,3]
[392256026,1761282646108,-3599.78572521,0.0004099,3]
[392256499,1761283085674,-290.39182045,0.00024932,2]
[392256500,1761283085767,-209.60817955,0.00024932,2]
[392256659,1761283266752,195.0,0.00026801,120]
[392256708,1761283508251,1147904.80587135,0.00015,2]
[392256709,1761283508279,14026.6590774,0.00015,2]
[392256710,1761283508305,5000.0,0.00015,2]
[392256711,1761283508330,2000000.0,0.00015,2]
[392256712,1761283508362,921937.91210848,0.00015,2]
[392256713,1761283508399,1000000.0,0.00015,2]
[392256714,1761283508423,6208.84086035,0.00015,2]
[392256715,1761283508445,6208.84086035,0.00015,2]
[392256716,1761283508467,6208.84086035,0.00015,2]
[392256717,1761283508489,6208.84086035,0.00015,2]
[392256718,1761283508512,6208.84086035,0.00015,2]
[392256719,1761283508534,6208.84086035,0.00015,2]
[392256720,1761283508557,6208.84086035,0.00015,2]
[392256721,1761283508579,6208.84086035,0.00015,2]
[392256722,1761283508601,6208.84086035,0.00015,2]
[392256723,1761283508623,6208.84086035,0.00015,2]
[392256724,1761283508649,50000.0,0.00015,2]
[392256725,1761283508673,50000.0,0.00015,2]
[392256726,1761283508699,50000.0,0.00015,2]
[392256727,1761283508725,50000.0,0.00015,2]
[392256728,1761283508748,5000.0,0.00015,2]
[392256729,1761283508774,50000.0,0.00015,2]
[392256730,1761283508802,200000.0,0.00015,2]
[392256731,1761283508831,290279.53098949,0.00015,2]
[392256732,1761283524926,366.13421041,0.000108,2]
[392256734,1761283535359,1098.85001053,9e-05,2]
[392256735,1761283561428,1340.90865414,8e-05,2]
[392256739,1761283619941,-193.48056105,0.00017249,2]
[392256740,1761283622491,-68.50943895,0.00017249,2]
[392256741,1761283622517,-128.29673315,0.00018157,2]
[392256746,1761283630128,-133.69326685,0.00018157,2]
[392256747,1761283630151,-23.31339717,0.00018974,2]
[392256776,1761283632680,-126.68660283,0.00018974,2]
[392256777,1761283632705,-26.57339717,0.00019064,2]
[392256801,1761283675386,2646939.30705005,0.00015,2]
[392256802,1761283676215,-484.56027984,0.00018,2]
[392256804,1761283678534,-496.56359566,0.00018,2]
[392256807,1761283689847,412.41624996,0.0001439,2]
[392256808,1761283690799,-265.16966228,0.00017999,2]
[392256809,1761283692333,-34.83033772,0.00017999,2]
[392256810,1761283692356,-253.10795877,0.00018,2]
[392256813,1761283693879,-204.67134215,0.00018,2]
[392256816,1761283696891,-371.75753306,0.00018,2]